[Event "Titled Tuesday Blitz July 11 Early 2023"]
[White "slidingknight2775"]
[Black "Nagare Kaivalya Sandip"]
[BlackFideId "25957929"]
[WhiteElo "2516"]
[BlackElo "2681"]
[Result "1/2-1/2"]
[Round "4"]
[TimeControl "180+2"]
[Date "2023.07.11"]
[WhiteClock "0:00:11"]
[BlackClock "0:00:27"]
[Board "69"]

1. d4 {[%clk 0:03:00]}  Nf6 {[%clk 0:02:59]} 2. Bg5 {[%clk 0:02:58]}  d5 {[%clk 0:02:56]} 3. Nd2 {[%clk 0:02:53]}  Bf5 {[%clk 0:02:56]} 4. e3 {[%clk 0:02:51]}  e6 {[%clk 0:02:56]} 5. c3 {[%clk 0:02:48]}  Nbd7 {[%clk 0:02:56]} 6. Ngf3 {[%clk 0:02:47]}  Be7 {[%clk 0:02:56]} 7. h3 {[%clk 0:02:42]}  O-O {[%clk 0:02:57]} 8. Be2 {[%clk 0:02:39]}  c5 {[%clk 0:02:55]} 9. O-O {[%clk 0:02:39]}  h6 {[%clk 0:02:55]} 10. Bf4 {[%clk 0:02:38]}  Rc8 {[%clk 0:02:55]} 11. a4 {[%clk 0:02:35]}  Re8 {[%clk 0:02:52]} 12. a5 {[%clk 0:02:31]}  c4 {[%clk 0:02:51]} 13. Ne5 {[%clk 0:02:28]}  Nxe5 {[%clk 0:02:51]} 14. Bxe5 {[%clk 0:02:28]}  Nd7 {[%clk 0:02:51]} 15. Bh2 {[%clk 0:02:27]}  Nf8 {[%clk 0:02:50]} 16. e4 {[%clk 0:02:25]}  dxe4 {[%clk 0:02:45]} 17. Nxc4 {[%clk 0:02:24]}  Bh7 {[%clk 0:02:32]} 18. Qb3 {[%clk 0:02:11]}  Qd5 {[%clk 0:02:31]} 19. Qa4 {[%clk 0:01:54]}  Ng6 {[%clk 0:02:29]} 20. Ne5 {[%clk 0:01:37]}  Nxe5 {[%clk 0:01:53]} 21. Bxe5 {[%clk 0:01:37]}  Bf6 {[%clk 0:01:49]} 22. Bxf6 {[%clk 0:01:11]}  gxf6 {[%clk 0:01:49]} 23. Qb5 {[%clk 0:01:11]}  Qd6 {[%clk 0:01:49]} 24. Qh5 {[%clk 0:00:48]}  Kg7 {[%clk 0:01:48]} 25. Qg4+ {[%clk 0:00:48]}  Kh8 {[%clk 0:01:47]} 26. Qh4 {[%clk 0:00:46]}  Qe7 {[%clk 0:01:41]} 27. Qxh6 {[%clk 0:00:42]}  Rg8 {[%clk 0:01:41]} 28. Kh1 {[%clk 0:00:37]}  Rg5 {[%clk 0:01:36]} 29. Qh4 {[%clk 0:00:30]}  Rcg8 {[%clk 0:01:36]} 30. Rg1 {[%clk 0:00:28]}  f5 {[%clk 0:01:32]} 31. f4 {[%clk 0:00:23]}  exf3 {[%clk 0:01:30]} 32. Bxf3 {[%clk 0:00:23]}  R8g6 {[%clk 0:01:22]} 33. Rae1 {[%clk 0:00:18]}  Qf6 {[%clk 0:01:19]} 34. Qf4 {[%clk 0:00:18]}  Rg3 {[%clk 0:01:14]} 35. Qe5 {[%clk 0:00:16]}  f4 {[%clk 0:01:13]} 36. Qxf6+ {[%clk 0:00:16]}  Rxf6 {[%clk 0:01:13]} 37. Kh2 {[%clk 0:00:16]}  Bf5 {[%clk 0:01:11]} 38. Bxb7 {[%clk 0:00:14]}  Rh6 {[%clk 0:01:11]} 39. Rh1 {[%clk 0:00:05]}  Bxh3 {[%clk 0:01:10]} 40. Kg1 {[%clk 0:00:03]}  Kg7 {[%clk 0:01:06]} 41. Kf1 {[%clk 0:00:02]}  Bg4 {[%clk 0:00:59]} 42. Rxh6 {[%clk 0:00:02]}  Kxh6 {[%clk 0:01:00]} 43. Kf2 {[%clk 0:00:03]}  Rd3 {[%clk 0:01:00]} 44. Bf3 {[%clk 0:00:04]}  Bf5 {[%clk 0:00:54]} 45. Re2 {[%clk 0:00:04]}  Kg5 {[%clk 0:00:53]} 46. Be4 {[%clk 0:00:04]}  Rd1 {[%clk 0:00:50]} 47. Bxf5 {[%clk 0:00:04]}  Kxf5 {[%clk 0:00:50]} 48. Re5+ {[%clk 0:00:05]}  Kg4 {[%clk 0:00:50]} 49. Re2 {[%clk 0:00:05]}  Ra1 {[%clk 0:00:49]} 50. b4 {[%clk 0:00:05]}  Rc1 {[%clk 0:00:48]} 51. Rb2 {[%clk 0:00:05]}  Rxc3 {[%clk 0:00:44]} 52. b5 {[%clk 0:00:06]}  Ra3 {[%clk 0:00:42]} 53. b6 {[%clk 0:00:06]}  axb6 {[%clk 0:00:42]} 54. axb6 {[%clk 0:00:07]}  Ra8 {[%clk 0:00:42]} 55. b7 {[%clk 0:00:07]}  Rb8 {[%clk 0:00:43]} 56. Rb4 {[%clk 0:00:07]}  Kf5 {[%clk 0:00:42]} 57. Kf3 {[%clk 0:00:07]}  f6 {[%clk 0:00:42]} 58. Rb5+ {[%clk 0:00:06]}  e5 {[%clk 0:00:43]} 59. Kf2 {[%clk 0:00:04]}  Ke6 {[%clk 0:00:32]} 60. dxe5 {[%clk 0:00:03]}  fxe5 {[%clk 0:00:32]} 61. Kf3 {[%clk 0:00:04]}  Kf5 {[%clk 0:00:30]} 62. g4+ {[%clk 0:00:03]}  fxg3 {[%clk 0:00:29]} 63. Kxg3 {[%clk 0:00:03]}  Ke4 {[%clk 0:00:30]} 64. Kf2 {[%clk 0:00:04]}  Kd4 {[%clk 0:00:28]} 65. Ke2 {[%clk 0:00:03]}  e4 {[%clk 0:00:27]} 66. Rb4+ {[%clk 0:00:03]}  Kd5 {[%clk 0:00:20]} 67. Ke3 {[%clk 0:00:03]}  Kc6 {[%clk 0:00:20]} 68. Rxe4 {[%clk 0:00:03]}  Rxb7 {[%clk 0:00:21]} 69. Rc4+ {[%clk 0:00:03]}  Kd5 {[%clk 0:00:21]} 70. Rd4+ {[%clk 0:00:04]}  Ke5 {[%clk 0:00:22]} 71. Rh4 {[%clk 0:00:05]}  Rb3+ {[%clk 0:00:21]} 72. Ke2 {[%clk 0:00:05]}  Rg3 {[%clk 0:00:21]} 73. Ke1 {[%clk 0:00:05]}  Rg2 {[%clk 0:00:21]} 74. Kf1 {[%clk 0:00:06]}  Rg5 {[%clk 0:00:21]} 75. Ke1 {[%clk 0:00:06]}  Rf5 {[%clk 0:00:21]} 76. Kd1 {[%clk 0:00:06]}  Kf6 {[%clk 0:00:22]} 77. Ke1 {[%clk 0:00:07]}  Kg5 {[%clk 0:00:22]} 78. Ra4 {[%clk 0:00:07]}  Re5+ {[%clk 0:00:23]} 79. Kd1 {[%clk 0:00:08]}  Rd5+ {[%clk 0:00:24]} 80. Ke1 {[%clk 0:00:08]}  Rc5 {[%clk 0:00:24]} 81. Kd1 {[%clk 0:00:09]}  Kf5 {[%clk 0:00:24]} 82. Ke1 {[%clk 0:00:09]}  Ke5 {[%clk 0:00:25]} 83. Kd1 {[%clk 0:00:10]}  Kd5 {[%clk 0:00:25]} 84. Ke1 {[%clk 0:00:11]}  Rc4 {[%clk 0:00:26]} 85. Rxc4 {[%clk 0:00:11]}  Kxc4 {[%clk 0:00:27]} 1/2-1/2


[Site "https://www.chess.com"]

[Event "Titled Tuesday Blitz July 11 Early 2023"]
[White "Osmak, Yuliia"]
[Black "Begmuratov, Alisher"]
[WhiteFideId "14101602"]
[BlackFideId "14203367"]
[WhiteElo "2515"]
[BlackElo "2680"]
[Result "0-1"]
[Round "4"]
[TimeControl "180+2"]
[Date "2023.07.11"]
[WhiteClock "0:00:02"]
[BlackClock "0:00:45"]
[Board "70"]

1. Nf3 {[%clk 0:03:00]}  c5 {[%clk 0:02:59]} 2. g3 {[%clk 0:02:57]}  Nc6 {[%clk 0:02:59]} 3. Bg2 {[%clk 0:02:54]}  g6 {[%clk 0:02:59]} 4. O-O {[%clk 0:02:52]}  Bg7 {[%clk 0:02:59]} 5. c4 {[%clk 0:02:52]}  e5 {[%clk 0:02:59]} 6. Nc3 {[%clk 0:02:50]}  Nge7 {[%clk 0:02:58]} 7. d3 {[%clk 0:02:49]}  h6 {[%clk 0:02:57]} 8. Nd2 {[%clk 0:02:41]}  O-O {[%clk 0:02:57]} 9. Nde4 {[%clk 0:02:35]}  d6 {[%clk 0:02:57]} 10. Nd5 {[%clk 0:02:14]}  f5 {[%clk 0:02:42]} 11. Nec3 {[%clk 0:02:09]}  Be6 {[%clk 0:02:41]} 12. Nxe7+ {[%clk 0:02:00]}  Qxe7 {[%clk 0:02:42]} 13. Nd5 {[%clk 0:02:00]}  Qf7 {[%clk 0:02:42]} 14. Rb1 {[%clk 0:01:55]}  a5 {[%clk 0:02:41]} 15. Bd2 {[%clk 0:01:49]}  a4 {[%clk 0:02:35]} 16. Nb6 {[%clk 0:01:45]}  Ra6 {[%clk 0:02:22]} 17. Nxa4 {[%clk 0:01:46]}  e4 {[%clk 0:02:20]} 18. Nc3 {[%clk 0:01:32]}  Ne5 {[%clk 0:02:16]} 19. Bf4 {[%clk 0:01:10]}  g5 {[%clk 0:02:05]} 20. Bxe5 {[%clk 0:01:07]}  Bxe5 {[%clk 0:02:03]} 21. dxe4 {[%clk 0:01:07]}  Bxc4 {[%clk 0:01:57]} 22. exf5 {[%clk 0:01:04]}  Qxf5 {[%clk 0:01:52]} 23. Bd5+ {[%clk 0:01:03]}  Bxd5 {[%clk 0:01:47]} 24. Nxd5 {[%clk 0:01:01]}  Qf7 {[%clk 0:01:39]} 25. Qb3 {[%clk 0:00:58]}  Kg7 {[%clk 0:01:28]} 26. Rbd1 {[%clk 0:00:52]}  Rc6 {[%clk 0:01:19]} 27. a3 {[%clk 0:00:47]}  c4 {[%clk 0:01:14]} 28. Qb5 {[%clk 0:00:45]}  Rc5 {[%clk 0:01:14]} 29. Qa4 {[%clk 0:00:28]}  Rxd5 {[%clk 0:01:13]} 30. Qxc4 {[%clk 0:00:26]}  Rxd1 {[%clk 0:01:12]} 31. Qxf7+ {[%clk 0:00:26]}  Kxf7 {[%clk 0:01:10]} 32. Rxd1 {[%clk 0:00:27]}  Rc8 {[%clk 0:01:10]} 33. Rd2 {[%clk 0:00:19]}  Rc1+ {[%clk 0:01:09]} 34. Kg2 {[%clk 0:00:19]}  Rb1 {[%clk 0:01:10]} 35. b4 {[%clk 0:00:18]}  Rc1 {[%clk 0:00:58]} 36. e3 {[%clk 0:00:17]}  Ke6 {[%clk 0:00:58]} 37. f4 {[%clk 0:00:17]}  Bf6 {[%clk 0:00:57]} 38. e4 {[%clk 0:00:16]}  Rc3 {[%clk 0:00:53]} 39. f5+ {[%clk 0:00:14]}  Kd7 {[%clk 0:00:50]} 40. g4 {[%clk 0:00:10]}  Rxa3 {[%clk 0:00:49]} 41. Rd5 {[%clk 0:00:09]}  Re3 {[%clk 0:00:46]} 42. Rb5 {[%clk 0:00:09]}  Kc7 {[%clk 0:00:45]} 43. e5 {[%clk 0:00:02]}  Rxe5 {[%clk 0:00:45]} 0-1


[Site "https://www.chess.com"]

[Event "Titled Tuesday Blitz July 11 Early 2023"]
[White "Korelskiy, Egor"]
[Black "Oleksiyenko, Mykhaylo"]
[WhiteFideId "34329064"]
[BlackFideId "4152417"]
[WhiteElo "2513"]
[BlackElo "2674"]
[Result "1/2-1/2"]
[Round "4"]
[TimeControl "180+2"]
[Date "2023.07.11"]
[WhiteClock "0:00:08"]
[BlackClock "0:00:14"]
[Board "72"]

1. e4 {[%clk 0:02:56]}  c5 {[%clk 0:02:59]} 2. Nf3 {[%clk 0:02:55]}  e6 {[%clk 0:03:00]} 3. Qe2 {[%clk 0:02:51]}  Nc6 {[%clk 0:02:58]} 4. g3 {[%clk 0:02:50]}  e5 {[%clk 0:02:55]} 5. Bg2 {[%clk 0:02:47]}  g6 {[%clk 0:02:55]} 6. O-O {[%clk 0:02:46]}  Bg7 {[%clk 0:02:55]} 7. Nc3 {[%clk 0:02:45]}  Nge7 {[%clk 0:02:55]} 8. Nd5 {[%clk 0:02:44]}  O-O {[%clk 0:02:53]} 9. d3 {[%clk 0:02:42]}  d6 {[%clk 0:02:52]} 10. c3 {[%clk 0:02:35]}  h6 {[%clk 0:02:48]} 11. Be3 {[%clk 0:02:27]}  f5 {[%clk 0:02:46]} 12. Qd2 {[%clk 0:02:23]}  Kh7 {[%clk 0:02:37]} 13. Nxe7 {[%clk 0:02:18]}  Qxe7 {[%clk 0:02:33]} 14. exf5 {[%clk 0:02:12]}  gxf5 {[%clk 0:02:31]} 15. Rfe1 {[%clk 0:02:07]}  d5 {[%clk 0:02:15]} 16. d4 {[%clk 0:02:04]}  e4 {[%clk 0:02:11]} 17. dxc5 {[%clk 0:01:58]}  exf3 {[%clk 0:02:08]} 18. Bxh6 {[%clk 0:01:57]}  Qf7 {[%clk 0:00:56]} 19. Bxg7 {[%clk 0:01:54]}  Qxg7 {[%clk 0:00:57]} 20. Bxf3 {[%clk 0:01:53]}  Ne5 {[%clk 0:00:56]} 21. Bxd5 {[%clk 0:01:51]}  Rd8 {[%clk 0:00:56]} 22. Qf4 {[%clk 0:01:13]}  Rxd5 {[%clk 0:00:54]} 23. c4 {[%clk 0:01:13]}  Rxc5 {[%clk 0:00:49]} 24. Qh4+ {[%clk 0:01:13]}  Kg6 {[%clk 0:00:48]} 25. Qf4 {[%clk 0:00:45]}  Bd7 {[%clk 0:00:48]} 26. Rad1 {[%clk 0:00:42]}  Bc6 {[%clk 0:00:45]} 27. Rd6+ {[%clk 0:00:41]}  Kh7 {[%clk 0:00:32]} 28. Qxf5+ {[%clk 0:00:41]}  Kg8 {[%clk 0:00:31]} 29. Kf1 {[%clk 0:00:30]}  Rf8 {[%clk 0:00:27]} 30. Qe6+ {[%clk 0:00:28]}  Qf7 {[%clk 0:00:26]} 31. b4 {[%clk 0:00:21]}  Qxe6 {[%clk 0:00:19]} 32. Rxe6 {[%clk 0:00:19]}  Rxc4 {[%clk 0:00:19]} 33. R1xe5 {[%clk 0:00:19]}  Rxb4 {[%clk 0:00:19]} 34. Rg5+ {[%clk 0:00:19]}  Kf7 {[%clk 0:00:19]} 35. Re3 {[%clk 0:00:18]}  Rb1+ {[%clk 0:00:18]} 36. Ke2 {[%clk 0:00:18]}  Bb5+ {[%clk 0:00:18]} 37. Kf3 {[%clk 0:00:17]}  Kf6 {[%clk 0:00:19]} 38. h4 {[%clk 0:00:15]}  Bc6+ {[%clk 0:00:19]} 39. Kg4 {[%clk 0:00:15]}  Rb4+ {[%clk 0:00:18]} 40. f4 {[%clk 0:00:14]}  Re8 {[%clk 0:00:15]} 41. Rf5+ {[%clk 0:00:13]}  Kg6 {[%clk 0:00:13]} 42. Rg5+ {[%clk 0:00:12]}  Kf6 {[%clk 0:00:13]} 43. Rf5+ {[%clk 0:00:11]}  Kg6 {[%clk 0:00:13]} 44. Rg5+ {[%clk 0:00:08]}  Kf6 {[%clk 0:00:14]} 1/2-1/2


[Site "https://www.chess.com"]

[Event "Titled Tuesday Blitz July 11 Early 2023"]
[White "Akylbek2021"]
[Black "Parkhov, Yair"]
[BlackFideId "2813408"]
[WhiteElo "2497"]
[BlackElo "2670"]
[Result "1-0"]
[Round "4"]
[TimeControl "180+2"]
[Date "2023.07.11"]
[WhiteClock "0:00:27"]
[BlackClock "0:00:15"]
[Board "74"]

1. e4 {[%clk 0:02:56]}  e5 {[%clk 0:02:58]} 2. Nf3 {[%clk 0:02:57]}  Nc6 {[%clk 0:02:58]} 3. Bc4 {[%clk 0:02:56]}  Nf6 {[%clk 0:02:54]} 4. d3 {[%clk 0:02:55]}  Be7 {[%clk 0:02:53]} 5. Bb3 {[%clk 0:02:53]}  O-O {[%clk 0:02:52]} 6. c3 {[%clk 0:02:52]}  d6 {[%clk 0:02:46]} 7. Nbd2 {[%clk 0:02:52]}  Kh8 {[%clk 0:02:46]} 8. Ng5 {[%clk 0:02:50]}  Qe8 {[%clk 0:02:45]} 9. O-O {[%clk 0:02:49]}  h6 {[%clk 0:02:45]} 10. Ngf3 {[%clk 0:02:49]}  Nh7 {[%clk 0:02:45]} 11. d4 {[%clk 0:02:49]}  Bf6 {[%clk 0:02:41]} 12. dxe5 {[%clk 0:02:48]}  Nxe5 {[%clk 0:02:37]} 13. Nd4 {[%clk 0:02:47]}  Nc6 {[%clk 0:02:32]} 14. Nxc6 {[%clk 0:02:44]}  bxc6 {[%clk 0:02:30]} 15. Re1 {[%clk 0:02:45]}  Rb8 {[%clk 0:02:28]} 16. Nf3 {[%clk 0:02:46]}  Bg4 {[%clk 0:02:24]} 17. h3 {[%clk 0:02:47]}  Bh5 {[%clk 0:02:23]} 18. Bf4 {[%clk 0:02:39]}  Ng5 {[%clk 0:02:21]} 19. Bxg5 {[%clk 0:02:31]}  Bxg5 {[%clk 0:01:58]} 20. g4 {[%clk 0:02:20]}  Bg6 {[%clk 0:01:25]} 21. Nxg5 {[%clk 0:02:14]}  hxg5 {[%clk 0:01:25]} 22. Qd2 {[%clk 0:02:05]}  Qe5 {[%clk 0:01:24]} 23. Qd4 {[%clk 0:02:02]}  c5 {[%clk 0:01:20]} 24. Qxe5 {[%clk 0:02:02]}  dxe5 {[%clk 0:01:20]} 25. Rad1 {[%clk 0:01:57]}  Rfd8 {[%clk 0:01:20]} 26. f3 {[%clk 0:01:56]}  f6 {[%clk 0:01:20]} 27. Kf2 {[%clk 0:01:52]}  Be8 {[%clk 0:01:18]} 28. Ke3 {[%clk 0:01:50]}  g6 {[%clk 0:01:17]} 29. Rxd8 {[%clk 0:01:46]}  Rxd8 {[%clk 0:01:17]} 30. Rd1 {[%clk 0:01:45]}  Rd6 {[%clk 0:01:17]} 31. Rxd6 {[%clk 0:01:42]}  cxd6 {[%clk 0:01:16]} 32. Kd3 {[%clk 0:01:43]}  Kg7 {[%clk 0:01:12]} 33. Kc4 {[%clk 0:01:42]}  Kf8 {[%clk 0:01:12]} 34. Bc2 {[%clk 0:01:28]}  Ke7 {[%clk 0:01:03]} 35. b4 {[%clk 0:01:28]}  Bf7+ {[%clk 0:00:59]} 36. Kb5 {[%clk 0:01:26]}  cxb4 {[%clk 0:01:00]} 37. c4 {[%clk 0:01:18]}  Kd7 {[%clk 0:00:58]} 38. Kxb4 {[%clk 0:01:13]}  Kc6 {[%clk 0:00:58]} 39. Ba4+ {[%clk 0:01:13]}  Kb6 {[%clk 0:00:58]} 40. Bd7 {[%clk 0:01:10]}  a5+ {[%clk 0:00:58]} 41. Kc3 {[%clk 0:01:07]}  Kc5 {[%clk 0:00:58]} 42. Bb5 {[%clk 0:01:07]}  Be6 {[%clk 0:00:57]} 43. Ba6 {[%clk 0:01:02]}  f5 {[%clk 0:00:55]} 44. exf5 {[%clk 0:00:58]}  gxf5 {[%clk 0:00:55]} 45. a3 {[%clk 0:00:56]}  f4 {[%clk 0:00:53]} 46. Kd3 {[%clk 0:00:51]}  Bd7 {[%clk 0:00:51]} 47. Bb7 {[%clk 0:00:45]}  Ba4 {[%clk 0:00:38]} 48. Bd5 {[%clk 0:00:35]}  Bd1 {[%clk 0:00:31]} 49. Kd2 {[%clk 0:00:33]}  Bb3 {[%clk 0:00:31]} 50. Kc3 {[%clk 0:00:32]}  Ba2 {[%clk 0:00:30]} 51. Be6 {[%clk 0:00:28]}  e4 {[%clk 0:00:16]} 52. fxe4 {[%clk 0:00:27]}  f3 {[%clk 0:00:17]} 53. Kd3 {[%clk 0:00:27]}  f2 {[%clk 0:00:18]} 54. Ke2 {[%clk 0:00:27]}  Bxc4+ {[%clk 0:00:18]} 55. Bxc4 {[%clk 0:00:27]}  Kxc4 {[%clk 0:00:19]} 56. h4 {[%clk 0:00:27]}  gxh4 {[%clk 0:00:14]} 57. g5 {[%clk 0:00:28]}  d5 {[%clk 0:00:13]} 58. g6 {[%clk 0:00:26]}  d4 {[%clk 0:00:14]} 59. g7 {[%clk 0:00:27]}  d3+ {[%clk 0:00:15]} 60. Kxf2 {[%clk 0:00:27]}  Kb3 {[%clk 0:00:16]} 61. g8=Q+ {[%clk 0:00:27]}  Kc2 {[%clk 0:00:15]} 62. Qc4+ {[%clk 0:00:27]} 1-0


[Site "https://www.chess.com"]

[Event "Titled Tuesday Blitz July 11 Early 2023"]
[White "Bobkov, Vadim"]
[Black "Urbina Perez, Juan Antonio"]
[WhiteFideId "34110876"]
[BlackFideId "2217368"]
[WhiteElo "2655"]
[BlackElo "2488"]
[Result "1/2-1/2"]
[Round "4"]
[TimeControl "180+2"]
[Date "2023.07.11"]
[WhiteClock "0:01:45"]
[BlackClock "0:02:10"]
[Board "75"]

1. d4 {[%clk 0:03:00]}  d5 {[%clk 0:02:57]} 2. c4 {[%clk 0:03:00]}  c6 {[%clk 0:02:57]} 3. cxd5 {[%clk 0:02:59]}  cxd5 {[%clk 0:02:56]} 4. Bg5 {[%clk 0:02:59]}  Nc6 {[%clk 0:02:56]} 5. Nc3 {[%clk 0:02:59]}  h6 {[%clk 0:02:55]} 6. Bh4 {[%clk 0:02:58]}  g5 {[%clk 0:02:54]} 7. Bg3 {[%clk 0:02:58]}  Bg7 {[%clk 0:02:54]} 8. e3 {[%clk 0:02:57]}  Nf6 {[%clk 0:02:46]} 9. Bd3 {[%clk 0:02:48]}  Qb6 {[%clk 0:02:34]} 10. Nge2 {[%clk 0:02:35]}  Bg4 {[%clk 0:02:26]} 11. f3 {[%clk 0:02:27]}  Bh5 {[%clk 0:02:22]} 12. O-O {[%clk 0:02:24]}  O-O {[%clk 0:02:21]} 13. Na4 {[%clk 0:02:13]}  Qa5 {[%clk 0:02:16]} 14. Nc5 {[%clk 0:01:50]}  Qb6 {[%clk 0:02:12]} 15. Na4 {[%clk 0:01:47]}  Qa5 {[%clk 0:02:11]} 16. Nc5 {[%clk 0:01:45]}  Qb6 {[%clk 0:02:10]} 17. Na4 {[%clk 0:01:45]} 1/2-1/2


[Site "https://www.chess.com"]

[Event "Titled Tuesday Blitz July 11 Early 2023"]
[White "Szczurek, Krzysztof"]
[Black "Komov, Roman"]
[WhiteFideId "1185489"]
[BlackFideId "24175714"]
[WhiteElo "2487"]
[BlackElo "2655"]
[Result "0-1"]
[Round "4"]
[TimeControl "180+2"]
[Date "2023.07.11"]
[WhiteClock "0:00:35"]
[BlackClock "0:00:06"]
[Board "76"]

1. Nf3 {[%clk 0:03:00]}  d5 {[%clk 0:02:59]} 2. g3 {[%clk 0:03:00]}  Nc6 {[%clk 0:02:56]} 3. d4 {[%clk 0:02:59]}  Bf5 {[%clk 0:02:56]} 4. Bg2 {[%clk 0:02:58]}  Nb4 {[%clk 0:02:56]} 5. Na3 {[%clk 0:02:58]}  e6 {[%clk 0:02:56]} 6. c3 {[%clk 0:02:56]}  Nc6 {[%clk 0:02:57]} 7. Nc2 {[%clk 0:02:56]}  Nf6 {[%clk 0:02:54]} 8. O-O {[%clk 0:02:56]}  h6 {[%clk 0:02:52]} 9. b4 {[%clk 0:02:45]}  Be4 {[%clk 0:02:50]} 10. a4 {[%clk 0:02:44]}  Bd6 {[%clk 0:02:49]} 11. Bb2 {[%clk 0:02:25]}  O-O {[%clk 0:02:48]} 12. Nce1 {[%clk 0:02:23]}  a5 {[%clk 0:02:37]} 13. b5 {[%clk 0:02:22]}  Ne7 {[%clk 0:02:38]} 14. Nd3 {[%clk 0:02:23]}  Nc8 {[%clk 0:02:39]} 15. Nfe5 {[%clk 0:02:17]}  Bxg2 {[%clk 0:02:38]} 16. Kxg2 {[%clk 0:02:17]}  Nd7 {[%clk 0:02:36]} 17. Nxd7 {[%clk 0:02:13]}  Qxd7 {[%clk 0:02:35]} 18. Nc5 {[%clk 0:02:13]}  Bxc5 {[%clk 0:02:32]} 19. dxc5 {[%clk 0:02:14]}  Ne7 {[%clk 0:02:23]} 20. c4 {[%clk 0:02:07]}  Rfd8 {[%clk 0:02:23]} 21. cxd5 {[%clk 0:02:06]}  Qxd5+ {[%clk 0:02:24]} 22. Qxd5 {[%clk 0:02:05]}  Rxd5 {[%clk 0:02:25]} 23. Rac1 {[%clk 0:01:58]}  Rd2 {[%clk 0:02:22]} 24. Be5 {[%clk 0:01:58]}  c6 {[%clk 0:02:18]} 25. e3 {[%clk 0:01:56]}  Nd5 {[%clk 0:02:10]} 26. Kf3 {[%clk 0:01:47]}  Rc8 {[%clk 0:01:55]} 27. e4 {[%clk 0:01:37]}  Nb4 {[%clk 0:01:33]} 28. Rcd1 {[%clk 0:01:13]}  Rxd1 {[%clk 0:01:27]} 29. Rxd1 {[%clk 0:01:12]}  cxb5 {[%clk 0:01:28]} 30. Bd6 {[%clk 0:01:06]}  bxa4 {[%clk 0:01:22]} 31. Ra1 {[%clk 0:01:06]}  Nc6 {[%clk 0:01:17]} 32. Rxa4 {[%clk 0:01:05]}  f6 {[%clk 0:01:14]} 33. Ke3 {[%clk 0:01:04]}  Kf7 {[%clk 0:01:15]} 34. Kd3 {[%clk 0:01:03]}  Ke8 {[%clk 0:01:04]} 35. Kc4 {[%clk 0:01:03]}  Kd7 {[%clk 0:01:03]} 36. Kb5 {[%clk 0:01:03]}  Ra8 {[%clk 0:00:57]} 37. Kb6 {[%clk 0:01:02]}  Kc8 {[%clk 0:00:57]} 38. Bf8 {[%clk 0:00:59]}  Ra6+ {[%clk 0:00:57]} 39. Kb5 {[%clk 0:00:59]}  e5 {[%clk 0:00:47]} 40. Bxg7 {[%clk 0:00:57]}  Nd4+ {[%clk 0:00:47]} 41. Kc4 {[%clk 0:00:57]}  h5 {[%clk 0:00:43]} 42. Bf8 {[%clk 0:00:54]}  Kd7 {[%clk 0:00:38]} 43. h3 {[%clk 0:00:51]}  Ra8 {[%clk 0:00:32]} 44. Bh6 {[%clk 0:00:50]}  Kc6 {[%clk 0:00:29]} 45. Be3 {[%clk 0:00:50]}  Ne6 {[%clk 0:00:29]} 46. Ra1 {[%clk 0:00:49]}  Nc7 {[%clk 0:00:14]} 47. Rd1 {[%clk 0:00:47]}  Nb5 {[%clk 0:00:13]} 48. Ra1 {[%clk 0:00:47]}  a4 {[%clk 0:00:13]} 49. Kb4 {[%clk 0:00:47]}  a3 {[%clk 0:00:13]} 50. Bc1 {[%clk 0:00:46]}  a2 {[%clk 0:00:12]} 51. Be3 {[%clk 0:00:46]}  Ra3 {[%clk 0:00:10]} 52. g4 {[%clk 0:00:45]}  hxg4 {[%clk 0:00:10]} 53. hxg4 {[%clk 0:00:45]}  Ra8 {[%clk 0:00:04]} 54. Kb3 {[%clk 0:00:43]}  Rg8 {[%clk 0:00:03]} 55. f3 {[%clk 0:00:40]}  Rd8 {[%clk 0:00:03]} 56. Kc2 {[%clk 0:00:41]}  Ra8 {[%clk 0:00:03]} 57. Kb2 {[%clk 0:00:40]}  Ra3 {[%clk 0:00:03]} 58. Bh6 {[%clk 0:00:39]}  Rxf3 {[%clk 0:00:02]} 59. Rxa2 {[%clk 0:00:39]}  Rf2+ {[%clk 0:00:03]} 60. Kb3 {[%clk 0:00:39]}  Rxa2 {[%clk 0:00:04]} 61. Kxa2 {[%clk 0:00:40]}  Nc3+ {[%clk 0:00:05]} 62. Kb3 {[%clk 0:00:39]}  Nxe4 {[%clk 0:00:06]} 63. Kb4 {[%clk 0:00:38]}  Nxc5 {[%clk 0:00:06]} 64. Bg7 {[%clk 0:00:38]}  Nd7 {[%clk 0:00:06]} 65. Kc4 {[%clk 0:00:38]}  Kd6 {[%clk 0:00:06]} 66. Bh6 {[%clk 0:00:38]}  Ke6 {[%clk 0:00:06]} 67. Be3 {[%clk 0:00:38]}  Nf8 {[%clk 0:00:06]} 68. Kb5 {[%clk 0:00:38]}  Ng6 {[%clk 0:00:07]} 69. Kb6 {[%clk 0:00:38]}  e4 {[%clk 0:00:04]} 70. Kxb7 {[%clk 0:00:38]}  Ne5 {[%clk 0:00:05]} 71. g5 {[%clk 0:00:38]}  f5 {[%clk 0:00:05]} 72. Kb6 {[%clk 0:00:35]}  Nc4+ {[%clk 0:00:06]} 0-1


[Site "https://www.chess.com"]

[Event "Titled Tuesday Blitz July 11 Early 2023"]
[White "Katz, Alexander"]
[Black "Zacurdajev, Dmitry"]
[WhiteFideId "2039796"]
[BlackFideId "4196309"]
[WhiteElo "2641"]
[BlackElo "2461"]
[Result "1-0"]
[Round "4"]
[TimeControl "180+2"]
[Date "2023.07.11"]
[WhiteClock "0:00:18"]
[BlackClock "0:00:04"]
[Board "78"]

1. e4 {[%clk 0:02:58]}  c6 {[%clk 0:03:00]} 2. Nc3 {[%clk 0:02:57]}  d5 {[%clk 0:03:00]} 3. Nf3 {[%clk 0:02:57]}  Bg4 {[%clk 0:03:00]} 4. d4 {[%clk 0:02:54]}  dxe4 {[%clk 0:02:54]} 5. Nxe4 {[%clk 0:02:54]}  Nf6 {[%clk 0:02:53]} 6. Nxf6+ {[%clk 0:02:54]}  exf6 {[%clk 0:02:54]} 7. c3 {[%clk 0:02:50]}  Bd6 {[%clk 0:02:52]} 8. Bd3 {[%clk 0:02:45]}  O-O {[%clk 0:02:49]} 9. O-O {[%clk 0:02:45]}  Nd7 {[%clk 0:02:43]} 10. h3 {[%clk 0:02:44]}  Bh5 {[%clk 0:02:41]} 11. Re1 {[%clk 0:02:42]}  Re8 {[%clk 0:02:35]} 12. Be3 {[%clk 0:02:04]}  Nf8 {[%clk 0:02:30]} 13. c4 {[%clk 0:01:40]}  Bc7 {[%clk 0:02:26]} 14. c5 {[%clk 0:01:38]}  Ne6 {[%clk 0:02:19]} 15. Bc4 {[%clk 0:01:37]}  Bxf3 {[%clk 0:01:59]} 16. Qxf3 {[%clk 0:01:20]}  Nxd4 {[%clk 0:01:57]} 17. Qg4 {[%clk 0:01:20]}  Ne6 {[%clk 0:01:17]} 18. Rad1 {[%clk 0:01:15]}  Qe7 {[%clk 0:01:13]} 19. b4 {[%clk 0:00:50]}  Rad8 {[%clk 0:01:03]} 20. Bd4 {[%clk 0:00:46]}  a5 {[%clk 0:00:32]} 21. a3 {[%clk 0:00:45]}  axb4 {[%clk 0:00:32]} 22. axb4 {[%clk 0:00:46]}  Bb8 {[%clk 0:00:16]} 23. g3 {[%clk 0:00:44]}  Kh8 {[%clk 0:00:12]} 24. Bc3 {[%clk 0:00:35]}  Rxd1 {[%clk 0:00:11]} 25. Rxd1 {[%clk 0:00:35]}  Ng5 {[%clk 0:00:10]} 26. Rd7 {[%clk 0:00:32]}  Qe4 {[%clk 0:00:07]} 27. Qxe4 {[%clk 0:00:25]}  Nxe4 {[%clk 0:00:08]} 28. Bb2 {[%clk 0:00:24]}  Be5 {[%clk 0:00:06]} 29. Bxe5 {[%clk 0:00:23]}  fxe5 {[%clk 0:00:07]} 30. Bxf7 {[%clk 0:00:20]}  Rb8 {[%clk 0:00:08]} 31. Bc4 {[%clk 0:00:19]}  Nd2 {[%clk 0:00:04]} 32. Rxd2 {[%clk 0:00:18]} 1-0


[Site "https://www.chess.com"]